Workbook

Sheet Tabelle 1
A1: Bauteile mit rechnerisch erforderlicher Querkraftbewehrung nach EN 1992-1-1:2004 und DIN EN 1992-1-1/NA:2013-04
A2: Betonfestigkeitsklasse: | C2: C30/37 | J2: Werstoffkennwerte für Beton in [N/mm2]
B3: αct = | C3: =m_alct -> 0.85 | D3: [-] | J3: αct = | K3: 0.85
B4: γc = | C4: =m_gammac -> 1.5 | D4: [-] | J4: γc = | K4: 1.5
B5: fck = | C5: =VLOOKUP(m_strfck,Werkstoffkennwerte,2,FALSE) -> 30 | D5: [N/mm2] | K5: fck | L5: fck,cube | M5: fcm | N5: fcd | O5: fctm | P5: fctd | Q5: Ecm | R5: ρw,min [‰]
B6: fcd = | C6: =VLOOKUP(m_strfck,Werkstoffkennwerte,5,FALSE) -> 17 | D6: [N/mm2] | J6: C12/15 | K6: 12 | L6: 15 | M6: =K6+8 -> 20 | N6: =m_alct*K6/m_gammac -> 6.8 | O6: =POWER(K6,2/3)*0.3 -> 1.572444837 | P6: =0.7*O6*m_alct/m_gammac -> 0.6237364518 | Q6: 27000 | R6: =0.16*O6/500*1000 -> 0.5031823477
B7: fywd = | C7: 435 | D7: [N/mm2] | J7: C16/20 | K7: 16 | L7: 20 | M7: =K7+8 -> 24 | N7: 9.066666667 | O7: =POWER(K7,2/3)*0.3 -> 1.904881262 | P7: 0.7556029007 | Q7: 29000 | R7: =0.16*O7/500*1000 -> 0.609562004
B8: VEd = | C8: 318.3 | D8: [kN] | J8: C20/25 | K8: 20 | L8: 25 | M8: 28 | N8: 11.33333333 | O8: 2.210418899 | P8: 0.8767994967 | Q8: 30000 | R8: 0.7073340477
B9: h = | C9: 60 | D9: [cm] | J9: C25/30 | K9: 25 | L9: 30 | M9: 33 | N9: 14.16666667 | O9: 2.56496392 | P9: 1.017435688 | Q9: 31000 | R9: 0.8207884544
B10: b = | C10: 30 | D10: [cm] | J10: C30/37 | K10: 30 | L10: 37 | M10: 38 | N10: 17 | O10: 2.896468154 | P10: 1.148932368 | Q10: 33000 | R10: 0.9268698092
A11: σcd = NEd / Ac | J11: C35/45 | K11: 35 | L11: 45 | M11: 43 | N11: 19.83333333 | O11: 3.209962442 | P11: 1.273285102 | Q11: 34000 | R11: 1.027187981
B12: NEd = | C12: 0 | D12: [kN] | J12: C40/50 | K12: 40 | L12: 50 | M12: 48 | N12: 22.66666667 | O12: 3.508821286 | P12: 1.391832443 | Q12: 35000 | R12: 1.122822811
B13: Ac = | C13: 1800 | D13: [cm2] | J13: C45/55 | K13: 45 | L13: 55 | M13: 53 | N13: 25.5 | O13: 3.795446994 | P13: 1.505527308 | Q13: 36000 | R13: 1.214543038
B14: σcd = | C14: =MIN(m_NEd*10/m_Ac,0.2*m_fcd) -> 0 | D14: [N/mm2] | J14: C50/60 | K14: 50 | L14: 60 | M14: =K14+8 -> 58 | N14: =m_alct*K14/m_gammac -> 28.33333333 | O14: =POWER(K14,2/3)*0.3 -> 4.071626425 | P14: =0.7*O14*m_alct/m_gammac -> 1.615078482 | Q14: 37000 | R14: 1.302920456
B15: bw = | C15: 30 | D15: [cm]
B16: cv,l = | C16: 2 | D16: [cm] | J16: Formeln für Werkstoffkennwerte
B17: d = | C17: 58 | D17: [cm] | J17: fcm = fck + 8 [N/mm2]
B18: z = | C18: 52.2 | D18: [cm] | J18: fcd = αct · fck / γc
A19: 1 ≤ cot Θ = (1.2 + 1.4 · σcd / fcd) / (1 - VRd,cc / VEd) ≤ 3 | J19: fctm = 0,3 · fck2/3
A20: mit VRd,cc = 0.24 · fck1/3 · (1 - 1.2 · σcd / fcd) · bw · z | J20: fctd = 0,7 · fctm · αct / γc
B21: Θ = | C21: 27.82 | D21: [Grad] | J21: ρw,min = 0.16 · fctm / fyk
B22: α = | C22: 90 | D22: [Grad]
A23: Erforderliche Querkraftbewehrung asw aus Nachweis VEd ≤ VRd,s | J23: Mindestquerkraftbewehrung min asw
A24: asw = Asw / sw =VEd / (fywd · z · (cot Θ + cot α) · sin α) | J24: ρw,min = | K24: =VLOOKUP(m_strfck,Werkstoffkennwerte,9,FALSE) -> 0.9268698092 | L24: [‰]
B25: asw = | C25: =m_VEd/(m_fywd/10*m_z/100*(_xlfn.COT(m_theta*PI()/180)+_xlfn.COT(m_al*PI()/180))*SIN(m_al*PI()/180)) -> 7.396951241 | D25: [cm2/m] | J25: b / h = | K25: =m_b/m_h -> 0.5 | L25: [-]
A26: VRd,max = bw · z · 0.75 · fcd · (cot Θ + cot α) / (1 + cot2 Θ) | J26: min asw = ρw,min · bw · sin α
B27: VRd,max = | C27: =m_bw*m_z*0.75*m_fcd/10*(_xlfn.COT(m_theta*PI()/180)+_xlfn.COT(m_al*PI()/180))/(1+_xlfn.COT(m_theta*PI()/180)*_xlfn.COT(m_theta*PI()/180)) -> 824.1249931 | D27: [kN] | J27: min asw = | K27: =IF(m_bh<4,1,IF(m_bh>5,0.6,(1-0.4*(m_bh-4))))*m_rhowmin*m_bw*SIN(m_al*PI()/180)/10 -> 2.780609428 | L27: [cm2/m]
A29: VEd ≤ VRd,max | D29: =IF(m_VEd<=m_VRdmax," Nachweis wurde erfüllt!"," Nachweis wurde nicht erfüllt!") -> Nachweis wurde erfüllt!
